fUSD/lending_fUSD_20240529
["ID","MTS","AMOUNT","RATE_DAILY","PERIOD"]
[328157301,1716959508535,-10000.0,0.00013,2]
[328157302,1716959508879,-10000.0,0.00013,2]
[328157303,1716959509217,-565.24091159,0.00012999,2]
[328157304,1716959509240,-161.34970624,0.00012999,2]
[328157305,1716959509267,-9273.40938217,0.00013,2]
[328157306,1716959510709,-10000.0,0.00013,2]
[328157307,1716959511098,-10000.0,0.00013,2]
[328157308,1716959511851,-10000.0,0.00013,2]
[328157309,1716959512761,-10000.0,0.00013,2]
[328157310,1716959513637,-10000.0,0.00013,2]
[328157311,1716959514976,-10000.0,0.00013,2]
[328157315,1716960065695,-411.86496791,0.00012666,2]
[328157316,1716960065717,-2606.75150095,0.0001274,2]
[328157317,1716960065740,-278.69142777,0.000129,2]
[328157318,1716960065766,-851808.48013291,0.00013,2]
[328157319,1716960065788,-6180.49054583,0.00013,2]
[328157320,1716960065811,-89725.00954142,0.00013,2]
[328157321,1716960065832,-200.0,0.00013,2]
[328157322,1716960065853,-2493.52729,0.00013,2]
[328157323,1716960137780,8712.41661437,0.00013,2]
[328157353,1716960456847,2077.9394,0.00013,2]
[328157382,1716960634043,-200.0,0.0001313,2]
[328157383,1716960634053,-200.0,0.00013261,2]
[328157384,1716960634064,-159.09,0.00013973,2]
[328157385,1716960634073,-155.74,0.00013973,2]
[328157386,1716960634083,-157.0,0.00013973,2]
[328157387,1716960634093,-158.69,0.00013973,2]
[328157388,1716960634102,-159.12,0.00013973,2]
[328157389,1716960634111,-161.34970624,0.00014999,2]
[328157390,1716960634121,-6893.1,0.00015,2]
[328157391,1716960634130,-2077.93941,0.00018,2]
[328157392,1716960634141,-499.99,0.00019452,2]
[328157393,1716960634152,-167.319999,0.0002,10]
[328157394,1716960634161,-2077.93941,0.00023,2]
[328157395,1716960634171,-214.60592809,0.00027,2]
[328157396,1716960634181,-195.25,0.0002744,2]
[328157397,1716960634190,-159.12,0.00027641,2]
[328157398,1716960634199,-2055.81297635,0.000278,2]
[328157399,1716960634208,-179.99194171,0.000278,2]
[328157400,1716960634219,-2077.93941,0.00028,2]
[328157401,1716960634228,-167.67160804,0.00028304,2]
[328157402,1716960634238,-199.21,0.00028333,2]
[328157403,1716960634247,-2055.81297626,0.00028491,2]
[328157404,1716960634257,-250.0,0.00029039,2]
[328157405,1716960634267,-658.11,0.00029073,2]
[328157406,1716960634276,-23465.42133503,0.00029126,2]
[328157413,1716960638948,-434.57866497,0.00029126,2]
[328157414,1716960638958,-1546.67428697,0.00029182,2]
[328157415,1716960639022,-509.13868929,0.00029182,2]
[328157416,1716960639032,-150.0,0.00029204,2]
[328157417,1716960639042,-1737.85,0.00029266,2]
[328157418,1716960639051,-250.0,0.00029399,2]
[328157419,1716960639061,-2732.569852,0.000295,2]
[328157420,1716960639071,-195.25,0.00029704,2]
[328157421,1716960639080,-4098.854778,0.000298,2]
[328157422,1716960639090,-2055.81297626,0.00029873,2]
[328157423,1716960639100,-222.44486269,0.0003,2]
[328157424,1716960639110,-2452.51700458,0.0003,2]
[328157460,1716960641424,-1267.1501,0.0003,2]
[328157461,1716960641436,-1745.47260042,0.0003,2]
[328157462,1716960641446,-219.73028286,0.000302,2]
[328157463,1716960641503,-2749.8478443,0.000302,2]
[328157507,1716960642904,-1579.33771553,0.000302,2]
[328157508,1716960642916,-2282.50878831,0.000302,2]
[328157509,1716960642925,-1160.89672958,0.000305,2]
[328157510,1716960643124,-6003.46656417,0.000305,2]
[328157511,1716960643210,-2399.63118925,0.000305,2]
[328157513,1716960643220,-2055.81297626,0.00030564,2]
[328157515,1716960643229,-452.0,0.000306,4]
[328157517,1716960643239,-1145.0,0.000307,4]
[328157519,1716960643249,-2817.2059494,0.000308,2]
[328157551,1716960824907,6535504.82857884,0.00013,2]
[328157552,1716960935680,710.86284032,0.000125,4]
[328157556,1716961631977,200.0,0.000123,4]
[328157557,1716961634097,500.0,0.000124,4]
[328157558,1716961636198,700.0,0.000125,4]
[328157560,1716961638295,1000.0,0.000126,4]
[328157564,1716961640436,1300.0,0.000127,4]
[328157565,1716961642472,200.0,0.000128,4]
[328157566,1716961644564,200.0,0.000129,4]
[328157586,1716961832131,-161.34970624,0.00012895,2]
[328157587,1716961832143,-240.17541587,0.00012899,2]
[328157588,1716961832152,-18.61767615,0.000129,2]
[328157598,1716961839011,-1180.60656002,0.000129,2]
[328157599,1716961839020,-756.81148949,0.000129,2]
[328157600,1716961839030,-190.89242599,0.000129,2]
[328157601,1716961839040,-3528.39381142,0.000129,2]
[328157602,1716961839050,-329.94856387,0.000129,2]
[328157603,1716961839059,-167.93667039,0.000129,2]
[328157604,1716961839069,-633.11302085,0.00012909,2]
[328157605,1716961839078,-633.11302085,0.00012913,2]
[328157606,1716961839088,-633.11302085,0.00012917,2]
[328157607,1716961839097,-633.11302085,0.00012921,2]
[328157608,1716961839106,-633.11302085,0.00012926,2]
[328157609,1716961839116,-150.99,0.0001293,2]
[328157610,1716961839125,-466.65454519,0.0001293,2]
[328157611,1716961839137,-166.45847566,0.0001293,2]
[328157612,1716961839146,-611.60011104,0.0001299,2]
[328157613,1716961839155,-172.90576968,0.0001299,2]
[328157614,1716961839164,-151.79,0.0001299,2]
[328157615,1716961839173,-151.79,0.0001299,2]
[328157616,1716961839182,-151.79,0.0001299,2]
[328157617,1716961839191,-151.79,0.0001299,2]
[328157618,1716961839200,-151.79,0.0001299,2]
[328157619,1716961839209,-151.79,0.0001299,2]
[328157620,1716961839219,-151.79,0.0001299,2]
[328157621,1716961839229,-151.79,0.0001299,2]
[328157622,1716961839239,-151.79,0.0001299,2]
[328157623,1716961839248,-151.79,0.0001299,2]
[328157624,1716961839257,-151.79,0.0001299,2]
[328157625,1716961839266,-151.79,0.0001299,2]
[328157626,1716961839275,-151.79,0.0001299,2]
[328157627,1716961839285,-151.79,0.0001299,2]
[328157628,1716961839294,-151.79,0.0001299,2]
[328157629,1716961839303,-151.79,0.0001299,2]
[328157630,1716961839312,-151.79,0.0001299,2]
[328157631,1716961839322,-151.79,0.0001299,2]
[328157632,1716961839331,-152.34207405,0.00012999,2]
[328157633,1716961839341,-9728.54385312,0.00013,2]
[328157634,1716961839352,-284.43513056,0.00013,2]
[328157635,1716961839363,-687.60680799,0.00013,2]
[328157636,1716961839375,-963093.23424241,0.00013,2]
[328157647,1716961840662,-844.9498,0.00013,2]
[328157648,1716961840763,-778.59358092,0.00013,2]
[328157649,1716961840774,-7056.9906007,0.00013,2]
[328157650,1716961841767,-1692.86537542,0.00013,2]
[328157670,1716961843497,-7771.71200001,0.00013,2]
[328157671,1716961843599,-3010.63721381,0.00013,2]
[328157710,1716962935276,-200.14617989,0.00012684,2]
[328157711,1716962935299,-161.34970624,0.00012685,2]
[328157712,1716962935322,-536.93850769,0.00012689,2]
[328157713,1716962935345,-3421.2775,0.00012795,2]
[328157714,1716962935368,-412.17126416,0.00012873,2]
[328157715,1716962935392,-1099.28888322,0.000129,2]
[328157716,1716962935417,-1500.46395422,0.000129,2]
[328157717,1716962935440,-2054.40910324,0.000129,2]
[328157718,1716962935463,-1266.22604172,0.000129,2]
[328157719,1716962935485,-209.64787819,0.000129,2]
[328157720,1716962935507,-2352.26254094,0.000129,2]
[328157721,1716962935529,-155.35363559,0.00012998,2]
[328157722,1716962935556,-74630.4648049,0.00013,2]
[328157744,1716963032255,-200.14617989,0.00012996,2]
[328157745,1716963032264,-161.34970624,0.00012997,2]
[328157746,1716963032273,-121.49942643,0.00012998,2]
[328157747,1716963032285,-3389.71792029,0.00012998,2]
[328157748,1716963032296,-795.00263647,0.00012998,2]
[328157749,1716963032307,-10602.38324138,0.00012998,2]
[328157750,1716963032318,-1722.88429448,0.00012998,2]
[328157751,1716963032356,-355.34,0.00012998,2]
[328157752,1716963032367,-661.68277074,0.00012998,2]
[328157753,1716963032380,-299.99,0.00012998,2]
[328157754,1716963032644,-257.69726089,0.00012998,2]
[328157755,1716963032655,-1311.16887766,0.00012998,2]
[328157756,1716963032665,-267.38869049,0.00013,2]
[328157757,1716963032676,-3523.28117892,0.00013,2]
[328157763,1716963038298,-1010.98784528,0.00013,2]
[328157764,1716963038411,-13344.95298,0.00013,2]
[328157765,1716963038423,-963093.23424241,0.00013,2]
[328157766,1716963038546,-968.23691696,0.00013,2]
[328157767,1716963038558,-163432.39253338,0.00013,2]
[328157777,1716963040986,-360.06,0.000129,2]
[328157778,1716963041872,-844.9506,0.000129,2]
[328157779,1716963041966,-363.1644273,0.000129,2]
[328157780,1716963041976,-20020.22297828,0.00013,2]
[328157818,1716963043465,-886.20197706,0.00013,2]
[328157819,1716963043477,-379.0309246,0.00013,2]
[328157820,1716963043488,-2187.0160308,0.00013,2]
[328157839,1716963043680,-744.54447521,0.00013,2]
[328157841,1716963043695,-9596.43595763,0.00013,2]
[328157845,1716963043727,-3749.91891361,0.00013,2]
[328157847,1716963043739,-3618.13347939,0.00013,2]
[328157849,1716963043750,-326.50285514,0.00013,2]
[328157851,1716963043761,-7868.64648529,0.00013,2]
[328157854,1716963043772,-330.27725022,0.00013,2]
[328157855,1716963043784,-1019.64966893,0.00013,2]
[328157923,1716963047942,-155.0,0.00012999,2]
[328157924,1716963047951,-161.34970624,0.00012999,2]
[328157925,1716963047960,-284.15565722,0.00013,2]
[328157933,1716963139449,265.22,0.00010959,2]
[328157934,1716963147978,2550.34059855,9.75e-05,2]
[328157935,1716963150464,221.01,0.00010959,2]
[328157937,1716963161245,184.18,0.00010959,2]
[328157939,1716963169939,779.24940145,9.75e-05,2]
[328157940,1716963169962,1771.0911971,9.75e-05,2]
[328157941,1716963172018,153.48,0.00010959,2]
[328157942,1716963182788,767.43,0.00010959,2]
[328157943,1716963189930,1307.9988029,9.75e-05,2]
[328157944,1716963189952,1242.34179565,9.75e-05,2]
[328157945,1716963196706,410.2235979,0.00010959,2]
[328157946,1716963197359,155.0,0.00010959,2]
[328157947,1716963198243,155.0,0.00010959,2]
[328157948,1716963198709,946.47526423,0.00010959,2]
[328157949,1716963199094,289.48756793,0.00010959,2]
[328157950,1716963200419,155.0,0.00010959,2]
[328157951,1716963200449,346.92954689,0.00010959,2]
[328157952,1716963202105,299.5422274,0.00010959,2]
[328157953,1716963202128,1062.0330754,0.00010959,2]
[328157954,1716963203334,362.48332984,0.00010959,2]
[328157955,1716963203856,155.0,0.00010959,2]
[328157956,1716963204046,299.26588838,0.00010959,2]
[328157957,1716963207933,2121.21770638,8.219e-05,2]
[328157958,1716963207954,429.12289217,8.219e-05,2]
[328157959,1716963208376,550.19946798,0.00010959,2]
[328157960,1716963209012,956.69462081,0.00010411,2]
[328157961,1716963212674,2063.98301904,0.00010959,2]
[328157962,1716963212696,4000.0,0.00010959,2]
[328157963,1716963212721,4000.0,0.00010959,2]
[328157964,1716963212746,4000.0,0.00010959,2]
[328157965,1716963212768,4000.0,0.00010959,2]
[328157966,1716963212790,4000.0,0.00010959,2]
[328157967,1716963212813,4000.0,0.00010959,2]
[328157968,1716963212835,4000.0,0.00010959,2]
[328157969,1716963212857,4000.0,0.00010959,2]
[328157970,1716963212879,4000.0,0.00010959,2]
[328157971,1716963212900,4000.0,0.00010959,2]
[328157972,1716963226601,-175.31741723,8.219e-05,2]
[328157973,1716963229890,-150.0,8.219e-05,2]
[328157974,1716963234261,-150.0,8.219e-05,2]
[328157975,1716963234765,-150.0,8.219e-05,2]
[328157976,1716963239190,-150.0,8.219e-05,2]
[328157977,1716963244822,-150.0,8.219e-05,2]
[328157978,1716963249404,-150.0,8.219e-05,2]
[328157979,1716963250115,-150.0,8.219e-05,2]
[328157980,1716963254445,150.0,6.164e-05,2]
[328157981,1716963254468,150.0,6.164e-05,2]
[328157982,1716963254489,150.0,6.164e-05,2]
[328157983,1716963254514,150.0,6.164e-05,2]
[328157984,1716963254536,150.0,6.164e-05,2]
[328157985,1716963254558,150.0,6.164e-05,2]
[328157986,1716963254580,150.0,6.164e-05,2]
[328157987,1716963254602,150.0,6.164e-05,2]
[328157988,1716963254623,150.0,6.164e-05,2]
[328157989,1716963254643,150.0,6.164e-05,2]
[328157990,1716963254665,1050.34059855,6.164e-05,2]
[328157991,1716963254693,-150.0,7.808e-05,2]
[328157992,1716963259823,-180.43944239,7.808e-05,2]
[328157993,1716963260414,-150.0,7.808e-05,2]
[328157994,1716963261110,-150.0,7.808e-05,2]
[328157995,1716963266622,150.0,6.164e-05,2]
[328157996,1716963266646,180.43944239,6.164e-05,2]
[328157997,1716963266669,1535.41338548,6.164e-05,2]
[328157998,1716963284901,805.75685962,6.164e-05,2]
[328157999,1716963300844,1361.5753028,6.164e-05,2]
[328158000,1716963306370,155.0,6.164e-05,2]
[328158001,1716963308035,956.69462081,5.856e-05,2]
[328158002,1716963308352,362.48332984,6.164e-05,2]
[328158003,1716963308891,2898.30202109,6.164e-05,2]
[328158004,1716963309414,346.92954689,6.164e-05,2]
[328158005,1716963309722,946.47526423,6.164e-05,2]
[328158006,1716963314886,155.0,6.164e-05,2]
[328158007,1716963316845,1361.5753028,6.164e-05,2]
[328158008,1716963320348,362.48332984,6.164e-05,2]
[328158009,1716963320382,210.43987258,6.164e-05,2]
[328158010,1716963323416,346.92954689,6.164e-05,2]
[328158011,1716963326038,956.69462081,5.856e-05,2]
[328158012,1716963328891,155.0,6.164e-05,2]
[328158013,1716963331739,946.47526423,6.164e-05,2]
[328158014,1716963338846,1361.5753028,6.164e-05,2]
[328158015,1716963341416,295.6204571,6.164e-05,2]
[328158016,1716963342484,271.89314215,6.164e-05,2]
[328158017,1716963347722,946.47526423,6.164e-05,2]
[328158018,1716963350050,956.69462081,5.856e-05,2]
[328158019,1716963350879,304.55587486,6.164e-05,2]
[328158020,1716963360870,1361.5753028,6.164e-05,2]
[328158021,1716963365729,946.47526423,6.164e-05,2]
[328158022,1716963368045,891.04072926,5.856e-05,2]
[328158023,1716963379753,946.47526423,6.164e-05,2]
[328158024,1716963382868,1361.5753028,6.164e-05,2]
[328158025,1716963397742,946.47526423,6.164e-05,2]
[328158026,1716963406869,1361.5753028,6.164e-05,2]
[328158027,1716963421749,710.44512221,6.164e-05,2]
[328158028,1716963428990,1361.5753028,6.164e-05,2]
[328158029,1716963444884,1361.5753028,6.164e-05,2]
[328158030,1716963460862,434.79421844,6.164e-05,2]
[328158031,1716964024527,200.0,6.011e-05,2]
[328158066,1716964165629,254.61069717,5.981e-05,2]
[328158084,1716964231894,-200.14617989,9.241e-05,2]
[328158085,1716964231904,-536.93850769,9.249e-05,2]
[328158086,1716964231915,-167.57,9.257e-05,2]
[328158087,1716964231925,-153.56,9.752e-05,2]
[328158088,1716964231935,-825.95,0.00010644,2]
[328158089,1716964231945,-304344.93004944,0.00010959,2]
[328158090,1716964231955,-443.88727971,0.00010959,2]
[328158091,1716964231964,-180.57101071,0.00010959,2]
[328158092,1716964231974,-155.53790356,0.00010959,2]
[328158093,1716964231983,-299.26588838,0.00010959,2]
[328158094,1716964231993,-156.85481627,0.00010959,2]
[328158095,1716964232004,-550.19946798,0.00010959,2]
[328158096,1716964232014,-153.56,0.00010971,2]
[328158098,1716964232025,-1320.73,0.00011289,2]
[328158100,1716964232036,-1343.09,0.00011289,2]
[328158101,1716964232048,-446.5,0.00011298,2]
[328158102,1716964232059,-2440.44,0.00011317,2]
[328158103,1716964232069,-499.99,0.00011317,2]
[328158104,1716964232079,-2081.43237181,0.00011368,2]
[328158112,1716964237622,-161.34970624,9.24e-05,2]
[328158113,1716964237632,-484.19762819,0.00011368,2]
[328158114,1716964237642,-1500.0,0.00011368,2]
[328158115,1716964237652,-334.25,0.00011368,2]
[328158116,1716964237663,-2334.47,0.0001139,2]
[328158117,1716964237674,-1036.73266557,0.00011398,2]
[328158118,1716964237687,-799.48733443,0.00011398,2]
[328158119,1716964237698,-194.97,0.00011453,2]
[328158120,1716964237709,-1666.05,0.00011481,2]
[328158121,1716964237720,-1852.42,0.00011503,2]
[328158122,1716964237730,-10037.07266557,0.00011516,2]
[328158123,1716964237744,-13862.92733443,0.00011516,2]
[328158124,1716964237755,-3048.45,0.00011516,2]
[328158125,1716964237764,-250.0,0.00011539,2]
[328158126,1716964237774,-250.0,0.00011563,2]
[328158127,1716964237785,-2354.62,0.00011598,2]
[328158128,1716964237795,-150.0,0.00011603,2]
[328158129,1716964237806,-177.58,0.00011875,2]
[328158130,1716964237816,-501.81,0.00012092,2]
[328158131,1716964237827,-501.81,0.00012126,2]
[328158132,1716964237838,-501.81,0.00012159,2]
[328158133,1716964237849,-153.56,0.0001219,2]
[328158134,1716964237859,-501.81,0.00012192,2]
[328158135,1716964237869,-501.81,0.00012225,2]
[328158136,1716964237880,-501.81,0.00012258,2]
[328158137,1716964237891,-501.81,0.00012292,2]
[328158138,1716964237902,-501.81,0.00012325,2]
[328158139,1716964237913,-501.81,0.00012358,2]
[328158140,1716964237923,-501.81,0.00012391,2]
[328158141,1716964237934,-501.81,0.00012424,2]
[328158143,1716964237944,-501.81,0.00012457,2]
[328158145,1716964237954,-501.81,0.00012491,2]
[328158147,1716964237964,-501.81,0.00012524,2]
[328158149,1716964237974,-501.81,0.00012557,2]
[328158151,1716964237984,-501.81,0.0001259,2]
[328158153,1716964237994,-399.53977084,0.00012612,2]
[328158154,1716964238004,-501.81,0.00012623,2]
[328158155,1716964238014,-163.75,0.00012655,2]
[328158156,1716964238023,-501.81,0.00012657,2]
[328158157,1716964238033,-501.81,0.0001269,2]
[328158158,1716964238044,-412.17126416,0.00012694,2]
[328158159,1716964238054,-501.81,0.00012723,2]
[328158160,1716964238065,-283.29,0.00012852,2]
[328158161,1716964238074,-851.32292,0.0001287,2]
[328158163,1716964238085,-2420.14158057,0.00012898,2]
[328158168,1716964238328,-412.80268163,0.00012898,2]
[328158169,1716964238339,-175.54842973,0.000129,2]
[328158170,1716964238349,-2422.8058,0.000129,2]
[328158171,1716964238359,-2050.29,0.000129,2]
[328158172,1716964238370,-1712.30926939,0.000129,2]
[328158173,1716964238381,-838.73233388,0.000129,2]
[328158174,1716964238391,-435.6520355,0.000129,2]
[328158175,1716964238402,-435.65203544,0.000129,2]
[328158176,1716964238412,-435.65203544,0.000129,2]
[328158177,1716964238423,-435.65203544,0.000129,2]
[328158178,1716964238437,-435.65203544,0.000129,2]
[328158179,1716964238447,-435.65203544,0.000129,2]
[328158180,1716964238457,-435.65203544,0.000129,2]
[328158181,1716964238467,-435.65203544,0.000129,2]
[328158182,1716964238477,-2137.29528065,0.000129,2]
[328158183,1716964238487,-215.59791887,0.000129,2]
[328158184,1716964238497,-825.95,0.00012908,2]
[328158185,1716964238508,-151.22,0.0001299,2]
[328158186,1716964238519,-151.22,0.0001299,2]
[328158187,1716964238530,-151.22,0.0001299,2]
[328158188,1716964238542,-151.22,0.0001299,2]
[328158189,1716964238552,-151.22,0.0001299,2]
[328158190,1716964238561,-151.22,0.0001299,2]
[328158191,1716964238738,-193.41469912,0.0001299,2]
[328158192,1716964238785,-1184.8036566,0.00012998,2]
[328158193,1716964238798,-209.81143805,0.00012998,2]
[328158194,1716964238808,-155.35363559,0.00012998,2]
[328158195,1716964238818,-103698.12977476,0.00012998,2]
[328158196,1716964238828,-599.72,0.00012999,2]
[328158197,1716964238838,-841868.13304056,0.00013,2]
[328158214,1716964241707,-1214.00939062,0.00013,2]
[328158289,1716964244233,-7746.19200009,0.00013,2]
[328158307,1716964246932,6000.0,5.981e-05,2]
[328158308,1716964246960,150.0,5.981e-05,2]
[328158309,1716964246983,150.0,5.981e-05,2]
[328158310,1716964247005,150.0,5.981e-05,2]
[328158311,1716964247027,150.0,5.981e-05,2]
[328158312,1716964247050,150.0,5.981e-05,2]
[328158313,1716964247072,150.0,5.981e-05,2]
[328158314,1716964247095,150.0,5.981e-05,2]
[328158315,1716964247117,150.0,5.981e-05,2]
[328158316,1716964247139,150.0,5.981e-05,2]
[328158317,1716964247160,175.31741723,5.981e-05,2]
[328158318,1716964247183,117855.58515854,5.981e-05,2]
[328158369,1716964256673,300.0,4.486e-05,2]
[328158370,1716964261435,155.23825066,5.981e-05,2]
[328158371,1716964262227,630.43944239,5.682e-05,2]
[328158374,1716964263493,155.07103255,5.981e-05,2]
[328158375,1716964267036,600.0,5.981e-05,2]
[328158376,1716964267077,20235.04667288,5.981e-05,2]
[328158377,1716964269934,946.23688278,5.981e-05,2]
[328158378,1716964270983,-3011.88935277,0.00012998,2]
[328158379,1716964271007,-2988.11064723,0.00012998,2]
[328158383,1716964280876,340555.09467885,5.981e-05,2]
[328158385,1716964290251,19749.44622392,5.981e-05,2]
[328158386,1716964290498,155.0,5.981e-05,2]
[328158411,1716964470822,7152.21786504,6.94e-05,2]
[328158421,1716964554749,300.0,0.000122,4]
[328158423,1716964556851,700.0,0.000123,4]
[328158424,1716964558986,1000.0,0.000124,4]
[328158425,1716964561087,1400.0,0.000125,4]
[328158427,1716964563179,1800.0,0.000126,4]
[328158428,1716964565284,300.0,0.000127,4]
[328158429,1716964567371,300.0,0.000128,4]
[328158430,1716964569467,300.0,0.000129,4]
[328159337,1716965215789,-1047.680114,9.482e-05,2]
[328159338,1716965215814,-155.0,9.53e-05,2]
[328159339,1716965215839,-161.34970624,9.531e-05,2]
[328159340,1716965215866,-16521.63306072,9.533e-05,2]
[328159341,1716965215890,-153.56,9.54e-05,2]
[328159342,1716965215915,-205.0,9.8e-05,2]
[328159343,1716965215942,-3421.2775,9.899e-05,2]
[328159344,1716965215966,-592.12011765,9.999e-05,2]
[328159345,1716965216109,-296.43991143,0.0001,2]
[328159346,1716965216170,-209.48335482,0.0001,2]
[328159347,1716965216198,-792.86,0.00010003,2]
[328159348,1716965216224,-243.26301955,0.000101,2]
[328159349,1716965216250,-1956.81,0.00011598,2]
[328159350,1716965216276,-2694.87,0.00011709,2]
[328159351,1716965216302,-193.78,0.00011769,2]
[328159352,1716965216326,-1000.0,0.00011924,2]
[328159353,1716965216351,-23900.0,0.00011926,2]
[328159354,1716965216376,-194.97,0.00011996,2]
[328159355,1716965216400,-1000.0,0.00012,2]
[328159356,1716965216423,-250.0,0.00012042,2]
[328159357,1716965216448,-792.86,0.00012267,2]
[328159358,1716965216472,-896.16003082,0.00012462,2]
[328159359,1716965216497,-156.34,0.00012598,2]
[328159360,1716965216521,-150.0,0.00012618,2]
[328159361,1716965216546,-250.0,0.00012618,2]
[328159362,1716965216571,-412.17126416,0.00012695,2]
[328159363,1716965216595,-156.34,0.00012762,2]
[328159364,1716965216620,-499.99,0.0001287,2]
[328159365,1716965216644,-2641.98436638,0.00012899,2]
[328159366,1716965216670,-28570.5288,0.000129,2]
[328159367,1716965216695,-964.2761,0.000129,2]
[328159368,1716965216720,-31568.7333,0.000129,2]
[328159369,1716965216747,-2050.29,0.000129,2]
[328159370,1716965216772,-1123.84524675,0.000129,2]
[328159371,1716965216800,-30213.31258132,0.000129,2]
[328159372,1716965216826,-15004.63954148,0.000129,2]
[328159373,1716965216851,-210.85679915,0.000129,2]
[328159374,1716965216883,-1712.30926939,0.000129,2]
[328159375,1716965216907,-3485.21628358,0.000129,2]
[328159376,1716965216930,-330.15194706,0.000129,2]
[328159377,1716965216957,-6411.88584191,0.000129,2]
[328159378,1716965216980,-431.19583773,0.000129,2]
[328159379,1716965217005,-156.34,0.00012926,2]
[328159380,1716965217033,-188.92317477,0.0001299,2]
[328159381,1716965217061,-151.21,0.0001299,2]
[328159382,1716965217087,-151.21,0.0001299,2]
[328159383,1716965217114,-151.21,0.0001299,2]
[328159384,1716965217141,-151.21,0.0001299,2]
[328159385,1716965217168,-151.21,0.0001299,2]
[328159386,1716965217196,-151.21,0.0001299,2]
[328159387,1716965217221,-151.21,0.0001299,2]
[328159388,1716965217246,-151.21,0.0001299,2]
[328159389,1716965217274,-151.21,0.0001299,2]
[328159390,1716965217298,-151.21,0.0001299,2]
[328159391,1716965217322,-151.21,0.0001299,2]
[328159392,1716965217346,-7543.99690703,0.00012998,2]
[328159393,1716965217372,-743.83245106,0.00012998,2]
[328159394,1716965217397,-599.72,0.00012998,2]
[328159395,1716965217422,-392.14826358,0.00012998,2]
[328159396,1716965217447,-784.33603182,0.00012998,2]
[328159397,1716965217474,-180.38347101,0.00012998,2]
[328159398,1716965217501,-155.35363559,0.00012998,2]
[328159399,1716965217527,-209.81143805,0.00012998,2]
[328159400,1716965217551,-1184.8036566,0.00012998,2]
[328159401,1716965217579,-103698.12977476,0.00012998,2]
[328159402,1716965217604,-364.40074696,0.00012998,2]
[328159403,1716965217630,-150.01,0.00012999,2]
[328159404,1716965217654,-1898.30519819,0.00012999,2]
[328159405,1716965217681,-1397063.01125644,0.00013,2]
[328159531,1716965408641,150.0,0.00012999,7]
[328159554,1716965432131,-302.38,0.00010959,2]
[328159555,1716965432141,-161.34970624,0.00011995,2]
[328159556,1716965432151,-155.0,0.00011995,2]
[328159557,1716965432160,-203.72661376,0.00011996,2]
[328159558,1716965432172,-46.27338624,0.00011996,2]
[328159559,1716965432182,-300.0,0.00012799,2]
[328159560,1716965432193,-98.71351208,0.000128,2]
[328159561,1716965432205,-502.58232,0.000128,2]
[328159562,1716965432217,-716.59388063,0.000128,2]
[328159563,1716965432230,-2657.0803135,0.000128,2]
[328159580,1716965440263,-17023.61968,0.000128,2]
[328159581,1716965440276,-2117.14619379,0.000128,2]
[328159582,1716965440286,-162.14362647,0.000128,2]
[328159583,1716965440295,-1286.496,0.000129,2]
[328159584,1716965440305,-5979.02417691,0.000129,2]
[328159585,1716965440315,-3848.82444232,0.000129,2]
[328159586,1716965440325,-725.21966289,0.000129,2]
[328159587,1716965440334,-200.00889079,0.000129,2]
[328159588,1716965440344,-241.13700683,0.000129,2]
[328159589,1716965440357,-1464.75667561,0.000129,2]
[328159590,1716965440368,-15764.13740031,0.000129,2]
[328159591,1716965440377,-120.85669708,0.000129,2]
[328159592,1716965440480,-84.18739921,0.000129,2]
[328159593,1716965440490,-221.56904741,0.000129,2]
[328159594,1716965440500,-273.77320886,0.0001299,2]